Cogmind - Beta 16.1 @@@ ROGUE MODE // 2026.03.13 @ 01:07:10 Player: oj;irsth;'shr Result: Destroyed by G-47 Trooper with Particle Gun Performance ------------- Evolutions (3) 1500 Regions Visited (13) 2600 Robots Destroyed (341) 1705 Value Destroyed (11889) 11889 Prototype IDs (12) 240 Alien Tech Used (0) 0 Bonus (2451) 2451 TOTAL SCORE: 20385 Bonus ------- High Alert Combat Kills 1562 Follower Combat Kills 351 Entered Garrisons 600 Friendly Fire -62 Cogmind --------- Core Integrity 0/700 Matter 231/300 Energy 99/100 System Corruption 33% Temperature Hot (262) Movement Core (50) Location -7/Factory Parts ------- > --- POWER (1) -------- (None) > --- PROPULSION (2) --- (None) > --- UTILITY (4) ------ (None) > --- WEAPON (6) ------- (None) > --- INVENTORY (5) ---- Wheel Reflective Plating Bomb Drone Bay (16/16) Advanced Assault Cannon Peak State ------------ > --- POWER ------------ Reinforced Deuterium Engine > --- PROPULSION ------- Armored Treads Advanced Treads > --- UTILITY ---------- Huge Storage Unit Advanced Targeting Computer Bomb Drone Bay > --- WEAPON ----------- Enhanced Autogun Enhanced Autogun Enhanced Autogun Enhanced Autogun Enhanced Autogun Enhanced Autogun > --- INVENTORY -------- Fission Core Armored Treads Armored Treads Armored Wheel Advanced Heat Sink High-capacity Battery High-capacity Matter Pod High-capacity Matter Pod Seismic Detector Hardened Medium Armor Plating Layered Medium Armor Plating Layered Medium Armor Plating Layered Medium Armor Plating Focal Shield Shield Generator Shield Generator Hacking Suite Hacking Suite Heavy Plasma Cannon Enhanced Autogun Heavy Machine Gun Precision Grenade Launcher Precision Grenade Launcher [Rating: 59] Favorites ----------- Power Reinforced Deuterium Engine Engine Reinforced Deuterium Engine Power Core Nuclear Core Propulsion Light Treads Treads Light Treads Wheel Compact Wheel Utility Huge Storage Unit Device Shield Generator Storage Huge Storage Unit Processor Advanced Targeting Computer Hackware Hacking Suite Protection Layered Medium Armor Plating Weapon Enhanced Autogun Energy Gun Particle Gun Energy Cannon Phase Cannon Ballistic Gun Enhanced Autogun Ballistic Cannon Mini Assault Cannon Launcher Precision Grenade Launcher Special Weapon Mining Laser Slashing Weapon Greatsword Piercing Weapon Force Lance Build | -11 -10 -9 -9 -8 -8 -8 -8 -8 -8 -8 -7 -7 -7 ------- Run | Yrd Mat Mat Min Mat Gar Mat Gar Mat Gar Mat Fac Was Fac Slots Evolved 6 | . . 2 . 2 . . . . . . 2 . . Power . | . . . . . . . . . . . . . . Propulsion . | . . . . . . . . . . . . . . Utility 2 | . . . . . . . . . . . 2 . . Weapon 4 | . . 2 . 2 . . . . . . . . . Parts Attached 167 | 8 10 23 . 5 22 6 10 13 2 7 8 5 48 Power 17 | 1 2 3 . 1 1 . 2 . . . 1 . 6 Engine 12 | 1 1 3 . 1 1 . 2 . . . 1 . 2 Core 5 | . 1 . . . . . . . . . . . 4 Reactor . | . . . . . . . . . . . . . . Propulsion 31 | 2 . 7 . 1 2 1 3 3 . 2 . 1 9 Treads 24 | 2 . 7 . 1 2 1 3 3 . 2 . 1 2 Leg . | . . . . . . . . . . . . . . Wheel 7 | . . . . . . . . . . . . . 7 Hover . | . . . . . . . . . . . . . . Flight . | . . . . . . . . . . . . . . Utility 36 | 3 5 2 . 1 3 2 . 1 . . 5 2 12 Device 20 | 2 3 2 . . 1 . . . . . 5 . 7 Storage 10 | 1 2 . . . 1 1 . . . . . 1 4 Processor 1 | . . . . . . . . 1 . . . . . Hackware 2 | . . . . . . . . . . . . 1 1 Protection 3 | . . . . 1 1 1 . . . . . . . Artifact . | . . . . . . . . . . . . . . Weapon 83 | 2 3 11 . 2 16 3 5 9 2 5 2 2 21 Energy Gun 22 | . . 3 . 2 2 . 2 . . . . . 13 Energy Cannon 4 | . . . . . 3 . . . 1 . . . . Ballistic Gun 41 | 2 1 7 . . 10 3 3 9 . 4 1 . 1 Ballistic Cannon 3 | . . . . . . . . . . . . . 3 Launcher 9 | . 2 1 . . 1 . . . 1 1 1 1 1 Special Weapon 1 | . . . . . . . . . . . . . 1 Impact Weapon . | . . . . . . . . . . . . . . Slashing Weapon 2 | . . . . . . . . . . . . . 2 Piercing Weapon 1 | . . . . . . . . . . . . 1 . Special Melee Weapon . | . . . . . . . . . . . . . . Unidentified Prototypes 12 | . . 4 . . . 1 . . . 1 2 . 4 Corrupted Parts 2 | . . . . . . . . . . . . 2 . System Corruption 6 | . . . . . . . . . . . . 6 . Parts Lost 37 | . 2 2 . . 5 1 8 . . . . 5 14 Power 1 | . . . . . . . . . . . . . 1 Propulsion 11 | . . . . . 1 1 2 . . . . 3 4 Utility 4 | . 1 1 . . 1 . . . . . . . 1 Weapon 21 | . 1 1 . . 3 . 6 . . . . 2 8 Highest Loss Streak 5 | . 2 1 . . 3 1 4 . . . . 5 4 To Critical Strikes 2 | . . . . . . . . . . . . 1 1 Average Backups 21 | 5 15 22 23 22 23 23 23 24 24 24 23 17 13 Power 1 | . 2 2 2 2 2 1 1 1 1 1 1 1 1 Propulsion 3 | 3 2 3 4 4 3 2 2 3 3 3 3 2 1 Utility 10 | . 5 8 9 9 11 12 14 15 15 15 15 11 4 Weapon 5 | . 5 8 8 7 6 6 5 5 5 5 4 3 5 Tool/Special . | . . . . . . . . . . . . . . Unused Backups 61 | . 4 16 1 1 3 1 1 2 1 1 . 12 18 Power 4 | . . 3 . . . . . . . . . . 1 Propulsion 15 | . 3 4 . . . . . 2 . 1 . 2 3 Utility 27 | . 1 2 1 1 2 1 1 . 1 . . 10 7 Weapon 15 | . . 7 . . 1 . . . . . . . 7 Tool/Special . | . . . . . . . . . . . . . . Average Slot Usage (%) 97 | . 97 98 100 89 98 99 97 99 99 99 99 66 90 Engine 8 | . 11 10 11 9 9 9 9 9 9 9 6 4 1 Core 1 | . 2 . . . . . . . . . . . 5 Treads 17 | . 27 22 22 18 17 17 17 18 18 17 14 10 4 Wheel 1 | . . . . . . . . . . . . . 9 Device 7 | . 12 10 11 7 7 7 1 4 . . 14 6 6 Storage 9 | . 14 11 11 9 9 9 9 9 9 9 7 7 6 Processor 2 | . . . . . . . . 3 9 9 7 4 . Hackware 1 | . . . . . . . . . . . . 1 14 Energy Gun 4 | . . 2 . 9 2 . 13 2 . . . . 19 Ballistic Gun 37 | . 27 40 44 36 47 53 32 51 53 53 43 24 3 Ballistic Cannon 1 | . . . . . . . . . . . . . 10 Peak Build Rating 59 | 9 13 25 26 31 43 42 43 48 47 47 59 56 54 Average Rating 35 | 7 9 22 25 28 35 41 37 46 46 46 53 35 43 On Entrance 30 | . 9 13 25 26 31 43 42 38 46 46 47 54 12 Avg Prop Armor Cover (%) 8 | 20 . . . . . . . . . . . . 7 Naked Turns 16 | . . . . . . . . . . . . 15 1 Heaviest Build 123 | 13 91 100 99 110 116 119 122 122 120 113 123 120 77 Greatest Support 45 | 40 40 40 40 40 40 40 40 45 44 44 42 42 32 Greatest Overweight (x) 37 | 3 2 2 2 2 2 2 5 3 2 37 2 5 7 Average Overweight (x) 1 | . . 2 2 2 2 2 2 2 2 2 2 . 2 Largest Inventory Capacity 25 | 8 25 25 25 25 25 25 25 25 25 25 25 25 20 Average Capacity 22 | 7 17 25 25 25 25 25 25 25 25 25 25 17 15 Most Carried 25 | 7 25 25 25 25 25 25 25 25 25 25 25 25 20 Average Carried 22 | 5 15 24 25 24 24 24 24 24 25 25 24 17 14 Final Capacity 25 | 8 25 25 25 25 25 25 25 25 25 25 25 5 5 Final Carried 25 | 7 25 25 25 25 24 24 25 25 25 25 25 5 5 Class Distribution -------------------- 36% | Executioner 21% | Scavenger-Executioner 18% | Tank 12% | Mutant Dominant Class ---------------- Mutant | -10/Materials Tank | -9/Materials Tank | -9/Mines Executioner | -8/Materials Scavenger-Executioner | -8/Garrison Scavenger-Executioner | -8/Materials Scavenger-Executioner | -8/Garrison Executioner | -8/Materials Executioner | -8/Garrison Executioner | -8/Materials Executioner | -7/Factory Executioner | -7/Waste Scavenger-Executioner | -7/Factory Resources | -11 -10 -9 -9 -8 -8 -8 -8 -8 -8 -8 -7 -7 -7 ----------- Run | Yrd Mat Mat Min Mat Gar Mat Gar Mat Gar Mat Fac Was Fac Matter Collected 11386 | 400 852 1027 166 168 880 790 1287 1098 679 803 1272 104 1860 Remotely . | . . . . . . . . . . . . . . Salvage Created 12895 | 246 950 1580 135 224 980 805 1156 1289 624 1128 1574 356 1848 Parts 707 | 14 61 109 3 12 53 50 55 82 38 66 72 . 92 Haulers Intercepted 23 | . 2 5 . . . 2 . 5 . 4 2 . 3 Recyclers Shooed 18 | 2 4 2 . . . 1 . 2 . . 1 . 6 Parts Field Recycled . | . . . . . . . . . . . . . . Retrieved Matter . | . . . . . . . . . . . . . . Parts Self-Destructed . | . . . . . . . . . . . . . . Prevented . | . . . . . . . . . . . . . . Parts Restored . | . . . . . . . . . . . . . . Kills | -11 -10 -9 -9 -8 -8 -8 -8 -8 -8 -8 -7 -7 -7 ------- Run | Yrd Mat Mat Min Mat Gar Mat Gar Mat Gar Mat Fac Was Fac Combat Hostiles Destroyed 240 | . 25 31 4 4 27 16 28 19 17 15 21 2 31 Guns 205 | . 20 27 4 4 25 16 28 19 17 15 18 . 12 Cannons 13 | . . . . . 1 . . . . . . . 12 AOE 19 | . 5 4 . . 1 . . . . . 3 2 4 Classes Destroyed 17 | 2 5 4 1 . 1 2 1 . . . . 1 . Worker 13 | . . 3 . . . . . 2 . 2 2 . 4 Builder 10 | . . 2 . . . 2 . 1 . 1 1 . 3 Tunneler 11 | 7 . . . . . 1 . 2 . . . . 1 Hauler 23 | . 2 5 . . . 2 . 5 . 4 2 . 3 Recycler 26 | 1 1 1 1 . . 4 . 4 . 1 6 . 7 Operator 13 | . 4 2 . . . 1 . 2 . 1 1 . 2 Watcher 9 | . 1 2 . . . . . 2 . 3 1 . . Swarmer 63 | . 9 10 . . 9 5 6 10 6 2 6 . . Grunt 101 | . 16 11 . 1 13 6 12 3 6 6 9 . 18 Brawler 6 | . . 2 . 1 . . 2 . . 1 . . . Duelist 3 | . . . . . . 2 . . . . . . 1 Sentry 37 | . . 8 . 2 4 2 5 5 . 5 2 . 4 Hunter 6 | . . . . . . 1 . 1 . 1 . . 3 Programmer 17 | . . . . . . . 3 . 5 . 4 . 5 Behemoth 1 | . . . . . 1 . . . . . . . . Compactor 2 | . . . . . . . . . . . . 2 . Assembled 4 | . . . 4 . . . . . . . . . . Best Kill Streak 8 | 3 5 7 5 2 4 7 6 8 4 5 4 2 6 Combat Bots Only 7 | . 5 5 4 2 4 7 6 4 4 4 3 2 5 Max Kills in Single Turn 3 | 1 3 3 1 1 2 2 2 3 2 2 2 2 2 Gunslinging 1 | . . 1 . . 1 1 1 1 1 . 1 . . Exploded 3 | . 3 2 . . 1 . . . . . 2 2 1 Melee . | . . . . . . . . . . . . . . Uniques/NPCs Destroyed . | . . . . . . . . . . . . . . Combat | -11 -10 -9 -9 -8 -8 -8 -8 -8 -8 -8 -7 -7 -7 -------- Run | Yrd Mat Mat Min Mat Gar Mat Gar Mat Gar Mat Fac Was Fac Hostile Shots Fired 996 | . 114 95 15 16 120 56 103 47 58 21 74 5 272 Missed 277 | . 23 27 3 6 27 15 26 15 16 6 23 . 90 Hits 719 | . 91 68 12 10 93 41 77 32 42 15 51 5 182 Melee 18 | . . 1 2 . . 5 1 . . . . 5 4 Projectile 701 | . 91 67 10 10 93 36 76 32 42 15 51 . 178 AOE 1 | . . . . . . . . . . . . . 1 Critical Strikes 23 | . . 1 1 . 4 3 . 2 2 1 1 3 5 Damage Taken 9730 | . 756 612 140 107 1387 773 1086 414 547 220 746 220 2722 Core 1410 | . 121 76 23 . 109 89 142 53 79 17 52 103 546 Absorbed by Shields 746 | . 134 229 51 41 109 . . . 22 . 160 . . Regen/Repaired (Parts) 685 | . 187 178 . 9 . . . . . . 311 . . Core Remaining (%) 59 | 100 51 . 75 . . . . . . 11 . . . Volleys Fired 675 | 20 85 64 8 12 53 39 69 48 33 32 78 7 127 Largest 6 | 2 2 4 4 5 6 6 5 6 6 6 6 6 6 Hottest 332 | 40 40 130 92 142 200 168 203 153 150 150 150 172 332 Shots Fired 2297 | 40 163 247 32 52 215 140 185 247 127 172 271 18 388 Gun 2108 | 40 157 244 32 52 203 140 164 247 124 172 239 4 290 Cannon 154 | . . . . . 10 . 21 . 3 . 30 . 90 Launcher 35 | . 6 3 . . 2 . . . . . 2 14 8 Special . | . . . . . . . . . . . . . . Kinetic 1912 | 40 157 236 32 40 187 140 160 247 124 172 239 4 134 Thermal 314 | . . 8 . . 11 . 25 . 3 . 30 . 237 Explosive 35 | . 6 3 . . 2 . . . . . 2 14 8 Electromagnetic 36 | . . . . 12 15 . . . . . . . 9 Robot Hit Streak 24 | 5 24 20 4 10 17 6 13 8 10 15 10 13 11 Robot Miss Streak 12 | 3 5 5 3 3 12 11 11 9 3 3 6 1 9 Penetration Max 1 | . . . . . . . . 1 . . . . . Secondary Targets 40 | . 3 4 2 1 7 3 8 2 6 1 3 . . Max Gunslinging Chain 2 | . 1 1 1 1 1 2 1 1 1 1 2 . . Shots Hit Robots 1317 | 23 105 147 15 38 123 96 126 116 66 78 134 14 236 Core Hits 713 | 9 53 67 9 9 75 102 79 49 28 44 56 5 128 Critical Kills 3 | . . 1 . . 1 . . . . . 1 . . Critical Parts Destroyed 6 | 1 . 1 . 1 1 . . 1 . 1 . . . Critical Strikes 25 | 1 . 3 . 1 2 . . 1 . 1 1 . 15 Burn 10 | . . 1 . . . . . . . . . . 9 Destroy 9 | 1 . 2 . 1 2 . . 1 . 1 1 . . Blast 6 | . . . . . . . . . . . . . 6 Melee Attacks 19 | . . . . . . . . . . . . . 19 Impact . | . . . . . . . . . . . . . . Slashing 3 | . . . . . . . . . . . . . 3 Piercing 16 | . . . . . . . . . . . . . 16 Sneak Attacks 7 | . . . . . . . . . . . . . 7 Combat Hostiles . | . . . . . . . . . . . . . . Follow-up Attacks . | . . . . . . . . . . . . . . Damage Inflicted 27253 | 290 1824 2780 270 616 2158 1522 2211 2398 1266 1357 2772 1966 5823 Guns 20724 | 290 1280 2337 244 599 1798 1378 1991 2367 1266 1352 2481 72 3269 Cannons 1655 | . . . . . 29 . 220 . . . 64 . 1342 Explosions 4080 | . 532 380 . . 331 144 . . . . 219 1894 580 Melee 632 | . . . . . . . . . . . . . 632 Ramming 162 | . 12 63 26 17 . . . 31 . 5 8 . . Kinetic 19130 | 290 1280 2253 244 503 1649 1378 1955 2367 1266 1352 2481 72 2040 Thermal 3096 | . . 153 . . 46 144 256 . . . 64 . 2433 Explosive 3867 | . 532 311 . . 331 . . . . . 219 1894 580 Electromagnetic 366 | . . . . 96 132 . . . . . . . 138 Impact . | . . . . . . . . . . . . . . Slashing 195 | . . . . . . . . . . . . . 195 Piercing 437 | . . . . . . . . . . . . . 437 Highest Corruption 33 | . . 3 3 . . . 1 1 4 4 5 28 33 Average Corruption 8 | . . 2 3 . . . 1 1 2 4 2 15 28 Corruption Purged . | . . . . . . . . . . . . . . Corruption Blocked . | . . . . . . . . . . . . . . Effects 299 | . . 14 17 . . . 6 18 11 27 37 7 162 Message Errors 59 | . . 3 1 . . . 1 4 2 6 9 2 31 Matter Fused 77 | . . 3 4 . . . 2 5 2 5 10 2 44 Heat Flow Errors 30 | . . 3 4 . . . . 3 . 4 2 1 13 Energy Discharges 31 | . . 1 2 . . . 1 2 1 2 4 1 17 Parts Rejected 4 | . . . . . . . . . 2 . . . 2 Parts Fused 1 | . . . . . . . . . . . 1 . . Data Loss (minor) 39 | . . 1 4 . . . 2 3 2 6 5 . 16 Data Loss (major) 7 | . . 1 1 . . . . . . 2 2 . 1 Misfires 13 | . . . . . . . . 1 1 . 3 . 8 Alerts 5 | . . 2 1 . . . . . . . . 1 1 Misdirections 3 | . . . . . . . . . . . . . 3 Weapon Failures 30 | . . . . . . . . . 1 2 1 . 26 Overload Shots . | . . . . . . . . . . . . . . Overflow Damage 325 | . 34 97 . . 21 . 12 10 . . 1 . 150 Projectiles 31 | . . . . . . . 12 . . . 1 . 18 Explosions 165 | . 34 97 . . 21 . . . . . . . 13 Melee 129 | . . . . . . . . 10 . . . . 119 Knockbacks 10 | . . 1 . . . . . . . . . . 9 Impact 1 | . . 1 . . . . . . . . . . . Kinetic 8 | . . . . . . . . . . . . . 8 Secondary 1 | . . . . . . . . . . . . . 1 Self-Inflicted Damage 234 | . . . . . . 121 . . . . 113 . . Shots 4 | . . . . . . 2 . . . . 2 . . Rammed 15 | . 3 6 1 1 . . . 2 . 1 . . 1 Targets Rammed 18 | . 3 7 1 1 . . . 3 . 1 1 . 1 Kicked . | . . . . . . . . . . . . . . Crushed 3 | . . 1 . . . . . 1 . . 1 . . Highest Temperature 508 | . 1 211 273 226 314 102 314 440 449 508 431 258 463 Average Temperature 98 | . 1 41 82 101 101 27 93 122 125 147 76 70 110 Received Heat Transfer 2942 | . 210 184 . 36 572 216 360 153 165 99 59 . 888 Effects 16 | . . . . . 1 . . 3 1 5 1 . 5 Shutdowns 3 | . . . . . . . . . 1 1 . . 1 Energy Bleed 3 | . . . . . 1 . . . . . 1 . 1 Interference 5 | . . . . . . . . 2 . . . . 3 Matter Decay 1 | . . . . . . . . 1 . . . . . Damage (major) 4 | . . . . . . . . . . 4 . . . Siege Activations . | . . . . . . . . . . . . . . Martial Activations . | . . . . . . . . . . . . . . Shielding Activations . | . . . . . . . . . . . . . . Robots Disrupted . | . . . . . . . . . . . . . . Combat Hostiles . | . . . . . . . . . . . . . . Robots Corrupted . | . . . . . . . . . . . . . . Combat Hostiles . | . . . . . . . . . . . . . . Parts Fried 1 | . . . . . . . . 1 . . . . . Impact Corruptions 1 | . . . . . . . . 1 . . . . . Robots Melted 3 | . . . . . . . . . . . . . 3 Combat Hostiles 3 | . . . . . . . . . . . . . 3 Parts Melted 7 | . . . . . . . . . . . . . 7 Heat Transferred 6092 | . . 347 . . 74 100 333 . . . 100 . 5138 Parts Sabotaged . | . . . . . . . . . . . . . . Parts Stolen . | . . . . . . . . . . . . . . Parts Stripped . | . . . . . . . . . . . . . . Power Chain Reactions . | . . . . . . . . . . . . . . Alert | -11 -10 -9 -9 -8 -8 -8 -8 -8 -8 -8 -7 -7 -7 ------- Run | Yrd Mat Mat Min Mat Gar Mat Gar Mat Gar Mat Fac Was Fac Maximum Alert Level 4 | . 1 2 . . 4 3 4 3 3 2 1 . 2 Low Security (%) 41 | 100 68 57 100 100 5 . . . . . 73 100 60 Level 1 24 | . 31 32 . . 40 . . 27 2 79 26 . 12 Level 2 16 | . . 9 . . 15 56 15 40 44 20 . . 26 Level 3 12 | . . . . . 28 43 38 31 53 . . . . Level 4 4 | . . . . . 10 . 46 . . . . . . Level 5 . | . . . . . . . . . . . . . . High Security . | . . . . . . . . . . . . . . Max Security . | . . . . . . . . . . . . . . Peak Influence 1549 | 10 267 480 133 101 1180 858 1549 933 863 474 255 81 536 Initial 754 | . . 85 133 . 31 575 555 754 348 420 109 81 . Average 353 | 1 109 202 18 27 561 679 1105 574 695 321 108 42 202 Influence Increases 8465 | 40 741 1007 5 148 1239 543 1074 776 515 487 755 25 1110 Destroy 0b10 Robot/C 4900 | . 500 620 . 80 620 320 600 480 340 300 420 . 620 Destroy 0b10 Robot/NC 535 | 40 40 75 5 . . 50 5 95 . 60 65 . 100 Destroy Leader 984 | . 116 174 . 30 20 74 20 134 30 104 116 . 166 Allied During Kill 60 | . . . . . 9 . 23 28 . . . . . Successful Hack 168 | . 23 25 . 7 23 4 21 24 . 4 8 . 29 Select Force Hacks 60 | . 30 30 . . . . . . . . . . . Disable Machine 285 | . . 45 . . 15 75 15 15 . . 75 . 45 Anti-Garrison Action 950 | . . . . . 500 . 350 . 100 . . . . Destroy Structure 283 | . 32 23 . 1 22 20 10 . 15 4 56 25 75 Lose Combat Pursuer 240 | . . 15 . 30 30 . 30 . 30 15 15 . 75 Influence Decreases 7973 | 40 538 867 348 99 108 869 379 1789 188 1107 766 257 618 Entered New Map 2961 | . . 118 210 . 18 605 299 795 188 443 134 151 . Time Decay 3972 | 40 518 589 138 99 . 254 . 634 . 514 632 56 498 Lost Part 340 | . 20 10 . . 50 10 80 . . . . 50 120 Lost Ally 100 | . . . . . 40 . . 60 . . . . . Purge Threat 600 | . . 150 . . . . . 300 . 150 . . . Squads Dispatched 39 | . 7 5 . 1 . 3 . 2 . 1 7 . 13 Investigation 7 | . 3 2 . . . . . . . . 1 . 1 Extermination 10 | . . . . . . . . . . . 4 . 6 Reinforcement 17 | . 4 3 . 1 . . . 2 . 1 2 . 4 Assault 3 | . . . . . . 1 . . . . . . 2 Garrison 2 | . . . . . . 2 . . . . . . . Intercept . | . . . . . . . . . . . . . . Searches Triggered . | . . . . . . . . . . . . . . Construction Impeded 2 | . . 1 . . . . . . . . . . 1 Haulers Reinforced 3 | . . . . . . . . . . . 1 . 2 Active Scanning Responses . | . . . . . . . . . . . . . . Cargo Convoy Interrupts . | . . . . . . . . . . . . . . Stealth | -11 -10 -9 -9 -8 -8 -8 -8 -8 -8 -8 -7 -7 -7 --------- Run | Yrd Mat Mat Min Mat Gar Mat Gar Mat Gar Mat Fac Was Fac Distress Signals 22 | . 2 6 . . . 3 . 8 . 2 1 . . Communications Jammed . | . . . . . . . . . . . . . . Distress Signals . | . . . . . . . . . . . . . . Times Spotted 367 | . 37 47 4 9 34 26 33 43 18 27 30 6 53 Peak Tracking Total 9 | . 6 9 3 5 4 6 7 5 4 4 4 4 7 Tactical Retreats 14 | . . 1 . 2 2 . 2 . 1 1 1 . 4 Traps | -11 -10 -9 -9 -8 -8 -8 -8 -8 -8 -8 -7 -7 -7 ------- Run | Yrd Mat Mat Min Mat Gar Mat Gar Mat Gar Mat Fac Was Fac Traps Triggered 36 | . 3 3 . . 13 . 5 . 4 2 3 . 3 Indirectly . | . . . . . . . . . . . . . . Trap Hack Attempts . | . . . . . . . . . . . . . . Triggered . | . . . . . . . . . . . . . . Disarmed . | . . . . . . . . . . . . . . Reprogrammed . | . . . . . . . . . . . . . . Reused . | . . . . . . . . . . . . . . Traps Extracted . | . . . . . . . . . . . . . . Installed . | . . . . . . . . . . . . . . Triggered . | . . . . . . . . . . . . . . Machines | -11 -10 -9 -9 -8 -8 -8 -8 -8 -8 -8 -7 -7 -7 ---------- Run | Yrd Mat Mat Min Mat Gar Mat Gar Mat Gar Mat Fac Was Fac Machines Disabled 30 | . . 3 . . 6 5 5 1 2 . 5 . 3 Max in Single Turn 4 | . . 1 . . 1 4 1 1 1 . 4 . 1 Garrison Relay 11 | . . . . . 5 . 4 . 2 . . . . Machines Repaired . | . . . . . . . . . . . . . . Machines Dismantled . | . . . . . . . . . . . . . . Machines Sabotaged . | . . . . . . . . . . . . . . Overloaded Fab Kills . | . . . . . . . . . . . . . . Hacking | -11 -10 -9 -9 -8 -8 -8 -8 -8 -8 -8 -7 -7 -7 --------- Run | Yrd Mat Mat Min Mat Gar Mat Gar Mat Gar Mat Fac Was Fac Machines Accessed 72 | . 6 13 1 3 4 2 2 13 1 8 7 . 12 Terminals 44 | . 4 8 . . 4 1 2 10 1 6 3 . 5 Fabricators 4 | . . . . . . . . . . . 1 . 3 Repair Stations 5 | . 1 2 . 1 . . . . . . 1 . . Recycling Units 9 | . 1 1 . 1 . . . 1 . 1 2 . 2 Scanalyzers 6 | . . 2 . . . . . 1 . 1 . . 2 Garrison Access 3 | . . . . 1 . 1 . 1 . . . . . Total Hacks 203 | . 28 48 1 4 8 2 4 44 1 19 14 . 30 Successful 108 | . 20 29 1 4 2 1 2 21 1 6 6 . 15 Failed 93 | . 8 18 . . 6 1 2 22 . 13 8 . 15 Catastrophic 10 | . 1 1 . . 2 1 . 2 . 1 1 . 1 Database Lockouts 2 | . . 1 . . . . . 1 . . . . . Manual 115 | . 16 35 . . . 1 . 28 . 14 5 . 16 Terminals 129 | . 14 29 . . 8 1 4 38 1 16 5 . 13 Fabricators 12 | . . . . . . . . . . . 2 . 10 Repair Stations 33 | . 12 15 . 2 . . . . . . 4 . . Recycling Units 15 | . 2 2 . 1 . . . 4 . 1 3 . 2 Scanalyzers 10 | . . 2 . . . . . 1 . 2 . . 5 Garrison Access 3 | . . . . 1 . 1 . 1 . . . . . Terminal Hacks 26 | . 3 2 1 . 2 . 2 9 1 3 . . 3 Robot Analysis 1 | . 1 . . . . . . . . . . . . Open Door 3 | . . . 1 . 1 . 1 . . . . . . Branch Access Points 2 | . . 1 . . . . . . . . . . 1 Emergency Access Points 1 | . . . . . . . . . 1 . . . . Terminal Index 2 | . 1 . . . . . . 1 . . . . . Alert Level 9 | . . . . . . . . 6 . 1 . . 2 Unreport Threat 4 | . . 1 . . . . . 2 . 1 . . . Zone Layout 2 | . 1 . . . . . . . . 1 . . . Garrison Registry 1 | . . . . . . . 1 . . . . . . Security Stations 1 | . . . . . 1 . . . . . . . . Fabricator Hacks 3 | . . . . . . . . . . . 1 . 2 Network Status 3 | . . . . . . . . . . . 1 . 2 Repair Station Hacks 30 | . 10 14 . 2 . . . . . . 4 . . Scan Component 15 | . 5 7 . 1 . . . . . . 2 . . Repair 15 | . 5 7 . 1 . . . . . . 2 . . Recycling Unit Hacks 9 | . 1 1 . 1 . . . 2 . 1 1 . 2 Report Inventory 7 | . 1 1 . 1 . . . 1 . 1 1 . 1 Retrieve Components 2 | . . . . . . . . 1 . . . . 1 Scanalyzer 6 | . . 2 . . . . . 1 . 1 . . 2 Insert Component 1 | . . . . . . . . . . . . . 1 Retrieve Study 5 | . . 2 . . . . . 1 . 1 . . 1 Garrison Access Hacks 3 | . . . . 1 . 1 . 1 . . . . . Unlock Access 3 | . . . . 1 . 1 . 1 . . . . . Unauthorized Hacks 31 | . 6 10 . . . . . 8 . 1 . . 6 Terminals 26 | . 5 9 . . . . . 8 . 1 . . 3 Botnet 18 | . 2 4 . . . . . 8 . 1 . . 3 Operators 1 | . 1 . . . . . . . . . . . . Skim 7 | . 2 5 . . . . . . . . . . . Fabricators 3 | . . . . . . . . . . . . . 3 Liberate 1 | . . . . . . . . . . . . . 1 Fabnet 1 | . . . . . . . . . . . . . 1 Haulers 1 | . . . . . . . . . . . . . 1 Repair Stations . | . . . . . . . . . . . . . . Recycling Units 2 | . 1 1 . . . . . . . . . . . Tunnel 2 | . 1 1 . . . . . . . . . . . Scanalyzers . | . . . . . . . . . . . . . . Garrison Access . | . . . . . . . . . . . . . . Data Cores Recovered 4 | . . . . . . 1 . 1 . 1 1 . . Used 1 | . . . . . . . . 1 . . . . . Hacking Detections 60 | . 6 10 . 1 4 1 2 12 1 6 7 . 10 Full Trace Events 3 | . . . . . 1 . 1 . . . 1 . . Feedback Events . | . . . . . . . . . . . . . . Feedback Blocked . | . . . . . . . . . . . . . . Robot Schematics Acquired . | . . . . . . . . . . . . . . Robots Built . | . . . . . . . . . . . . . . Authchips . | . . . . . . . . . . . . . . Time . | . . . . . . . . . . . . . . Total Robot Build Rating . | . . . . . . . . . . . . . . Part Schematics Acquired . | . . . . . . . . . . . . . . Parts Built . | . . . . . . . . . . . . . . Authchips . | . . . . . . . . . . . . . . Time . | . . . . . . . . . . . . . . Total Part Build Rating . | . . . . . . . . . . . . . . Part Studies Acquired 5 | . . 2 . . . . . 1 . 1 . . 1 Parts Repaired 15 | . 5 7 . 1 . . . . . . 2 . . Time 584 | . 142 312 . 32 . . . . . . 98 . . Parts Recycled . | . . . . . . . . . . . . . . Recycled Matter . | . . . . . . . . . . . . . . Retrieved Matter . | . . . . . . . . . . . . . . Retrieved Components 16 | . . . . . . . . 9 . . . . 7 Parts Scanalyzed 1 | . . . . . . . . . . . . . 1 Part Schematics Acquired . | . . . . . . . . . . . . . . Parts Damaged . | . . . . . . . . . . . . . . Bothacking | -11 -10 -9 -9 -8 -8 -8 -8 -8 -8 -8 -7 -7 -7 ------------ Run | Yrd Mat Mat Min Mat Gar Mat Gar Mat Gar Mat Fac Was Fac Used RIF Installer . | . . . . . . . . . . . . . . Robots Hacked . | . . . . . . . . . . . . . . Non-combat . | . . . . . . . . . . . . . . Combat . | . . . . . . . . . . . . . . Robot Hacks Applied . | . . . . . . . . . . . . . . Relay Couplers Released 47 | . . . . . 18 . 23 . 6 . . . . Machine Destruction 43 | . . . . . 18 . 19 . 6 . . . . Programmers 4 | . . . . . . . 4 . . . . . . Fabnet Peak Effective % . | . . . . . . . . . . . . . . Robots Rewired 3 | . . . . . . . 3 . . . . . . Allies Hacked . | . . . . . . . . . . . . . . Hacks Repelled . | . . . . . . . . . . . . . . Allies | -11 -10 -9 -9 -8 -8 -8 -8 -8 -8 -8 -7 -7 -7 -------- Run | Yrd Mat Mat Min Mat Gar Mat Gar Mat Gar Mat Fac Was Fac Total Allies 5 | . . . . . 2 . 3 . . . . . . Largest Group 3 | . . . . . 2 . 3 3 . . . . . Highest-Rated Group 93 | . . . . . 40 . 93 93 . . . . . Highest-Rated Ally 31 | . . . . . 20 . 31 31 . . . . . Initial Warlord ECA Mod 19 | . . . . . . 9 9 17 17 19 18 18 18 Total Orders . | . . . . . . . . . . . . . . Ally Attacks 59 | . . . . . 11 . 12 36 . . . . . Total Damage 1086 | . . . . . 417 . 125 544 . . . . . Kills 12 | . . . . . 4 . 2 6 . . . . . Allies Corrupted . | . . . . . . . . . . . . . . Allies Melted 1 | . . . . . . . . 1 . . . . . Intel | -11 -10 -9 -9 -8 -8 -8 -8 -8 -8 -8 -7 -7 -7 ------- Run | Yrd Mat Mat Min Mat Gar Mat Gar Mat Gar Mat Fac Was Fac Active Infowar (turns) 2972 | 189 340 . . . . . . . . . 1422 104 917 Terrain 1249 | 189 338 . . . . . . . . . . . 722 Seismic 1723 | . 2 . . . . . . . . . 1422 104 195 Robot Analysis Total 1 | . 1 . . . . . . . . . . . . Derelict Logs Recovered . | . . . . . . . . . . . . . . Drone Launches . | . . . . . . . . . . . . . . Drone Recoveries . | . . . . . . . . . . . . . . Exploration | -11 -10 -9 -9 -8 -8 -8 -8 -8 -8 -8 -7 -7 -7 ------------- Run | Yrd Mat Mat Min Mat Gar Mat Gar Mat Gar Mat Fac Was Fac Turns Passed 21335 | 274 2505 2977 1040 538 2082 542 1797 2223 845 1401 2209 162 2740 Spaces Moved 8435 | 131 973 948 418 193 747 161 638 860 330 543 781 136 1576 Core 257 | 40 . . . . . . . . . 1 . 104 112 Treads 6714 | 91 973 948 418 193 747 161 638 860 330 542 781 32 . Legs . | . . . . . . . . . . . . . . Wheels 1464 | . . . . . . . . . . . . . 1464 Hover . | . . . . . . . . . . . . . . Flight . | . . . . . . . . . . . . . . Fastest Speed 50 | 50 160 240 240 240 240 240 240 225 225 225 237 50 50 Average Speed 210 | 149 209 244 240 240 240 240 241 237 225 234 237 95 127 Slowest Speed 1900 | 200 320 320 240 240 240 240 360 312 225 1900 237 345 185 Overloaded Moves . | . . . . . . . . . . . . . . Propulsion Burnouts . | . . . . . . . . . . . . . . Robots Hopped . | . . . . . . . . . . . . . . Potential Cave-ins 7 | . . . . . . . . . . . . 7 . Cave-ins Triggered . | . . . . . . . . . . . . . . Exploration Rate (%) 52 | 4 86 77 82 16 71 20 78 66 41 42 30 83 33 Regions Visited 13 Branch Regions 1 Pre-discovered Areas 7 | . 1 6 . . . . . . . . . . . Known Exits Taken 5 | . . 1 1 1 . 1 . 1 . . . . . Unknown Exits Taken 3 | 1 1 . . . . . . . . 1 . . . Scrap Searched 1 | . . . 1 . . . . . . . . . . Spaces Dug 39 | . 11 . . . . . . . . . 21 . 7 Terrain Destroyed 276 | . 37 25 . . 14 26 . 2 . . 60 40 72 Melee 7 | . . . . . . . . . . . . . 7 Projectile 46 | . . . . . . . . 2 . . 25 . 19 AOE 223 | . 37 25 . . 14 26 . . . . 35 40 46 Terrain Rammed . | . . . . . . . . . . . . . . Walls Destroyed . | . . . . . . . . . . . . . . Machines Disabled . | . . . . . . . . . . . . . . Actions | -11 -10 -9 -9 -8 -8 -8 -8 -8 -8 -8 -7 -7 -7 --------- Run | Yrd Mat Mat Min Mat Gar Mat Gar Mat Gar Mat Fac Was Fac Total 10761 | 166 1272 1458 435 238 915 228 789 987 402 658 1063 152 1998 Wait 977 | . 158 345 7 16 33 6 15 39 24 55 159 . 120 Move 8426 | 130 972 947 417 193 746 161 637 860 329 542 781 135 1576 Hop . | . . . . . . . . . . . . . . Pick Up 134 | 7 26 21 1 2 14 5 9 4 1 4 6 2 32 Fast Attach 109 | 7 7 15 . 6 11 3 3 7 2 6 8 3 31 Attach 34 | . 1 3 . 1 3 1 6 . . . 3 1 15 Detach 16 | . 2 . . . . . 1 . . . 1 . 12 Swap 121 | 1 8 17 . 1 14 6 9 8 5 6 19 3 24 Drop 162 | 1 10 39 1 6 21 7 6 18 1 12 7 1 32 Fire 675 | 20 85 64 8 12 53 39 69 48 33 32 78 7 127 Melee 19 | . . . . . . . . . . . . . 19 Ram 2 | . . . . . . . . . . . . . 2 Kick . | . . . . . . . . . . . . . . Crush 17 | . 3 7 1 1 . . . 3 . 1 1 . . Escape Stasis 43 | . . . . . 20 . 8 . 7 . . . 8 Rewire 26 | . . . . . . . 26 . . . . . . Trap . | . . . . . . . . . . . . . . Miscellaneous . | . . . . . . . . . . . . . . Route ------- -11/Scrapyard -10/Materials (discovered 3 exits: *Mat x2 / [*Sub]) -9/Materials (discovered 5 exits: *Mat x3 / *Min x2) -9/Mines (discovered 2 exits: *Mat / [*Zio]) -8/Materials (discovered 2 exits: [*Sto] / Gar) -8/Garrison (discovered 3 exits: *Mat x3) -8/Materials -8/Garrison (discovered 3 exits: *Mat x3) -8/Materials (discovered 2 exits: [*Sto] / Gar) -8/Garrison -8/Materials (discovered 2 exits: *Fac / [*Sto]) -7/Factory (discovered 2 exits: [*Fac] / *Low) -7/Waste -7/Factory (discovered 3 exits: [*Fac] / Low x2) History --------- Turn | Location | Event 3 | -11/Scrapyard | Discovered new exit (range 16) 275 | -11/Scrapyard | Entered Materials 314 | -10/Materials | Build established: Mutant 672 | -10/Materials | Discovered new exit (range 16) 1332 | -10/Materials | Discovered new exit (range 6) 1457 | -10/Materials | Repaired Lgt. Treads 1485 | -10/Materials | Repaired Lgt. Treads 1512 | -10/Materials | Repaired Assault Rifle 1584 | -10/Materials | Repaired Assault Rifle 1624 | -10/Materials | Repaired Hacking Suite 1969 | -10/Materials | Discovered new exit (range 15) 2780 | -10/Materials | Entered another Materials area 2780 | -9/Materials | Evolved 2 slots: Weapon x2 3102 | -9/Materials | Build established: Tank 3931 | -9/Materials | Repaired Imp. Assault Rifle 4279 | -9/Materials | Discovered new exit (range 16) 5064 | -9/Materials | Identified exit to Mines 5103 | -9/Materials | Central database locked down 5177 | -9/Materials | Learned location of 1 exit from Recycling 5223 | -9/Materials | Discovered new exit (range 15) 5241 | -9/Materials | Learned location of Zion (-7) 5370 | -9/Materials | Learned location of Storage (-8) 5392 | -9/Materials | Identified exit to Materials 5404 | -9/Materials | Learned Storage interactive machine intel 5459 | -9/Materials | Learned 4 Recycling zone layouts 5501 | -9/Materials | Learned Storage emergency access door positions 5502 | -9/Materials | Repaired Imp. Assault Rifle 5536 | -9/Materials | Repaired Shield Generator 5588 | -9/Materials | Repaired Imp. Assault Rifle 5628 | -9/Materials | Repaired Hacking Suite 5680 | -9/Materials | Repaired Imp. Assault Rifle 5719 | -9/Materials | Repaired Lgt. Deuterium Engine 5757 | -9/Materials | Entered Mines 6075 | -9/Mines | A Derelict revealed a hidden shortcut to a safe place 6240 | -9/Mines | Discovered exit to Materials (range 9) 6265 | -9/Mines | Found the Drone Emporium 6281 | -9/Mines | Found Prototype Device 6598 | -9/Mines | Assembled infested the area 6797 | -9/Mines | Entered Materials 6797 | -8/Materials | Evolved 2 slots: Weapon x2 6994 | -8/Materials | Repaired Shield Generator? 7110 | -8/Materials | Discovered new exit (range 8) 7133 | -8/Materials | Build established: Executioner 7335 | -8/Materials | Identified exit to Garrison 7335 | -8/Materials | Entered Garrison 7395 | -8/Garrison | Triggered checkpoint 7450 | -8/Garrison | Garrison Relay disabled 7553 | -8/Garrison | Triggered checkpoint 7588 | -8/Garrison | Triggered checkpoint 7620 | -8/Garrison | Lost 3 parts (1u2w) 7779 | -8/Garrison | Discovered new exit (range 10) 7906 | -8/Garrison | Spotted B-75 Beast 7921 | -8/Garrison | Destroyed B-75 Beast 7980 | -8/Garrison | Build established: Scavenger-Executioner 8293 | -8/Garrison | Triggered checkpoint 8329 | -8/Garrison | Rescued a captive Derelict 8331 | -8/Garrison | Rescued a captive Derelict 8349 | -8/Garrison | Garrison Relay disabled 8590 | -8/Garrison | Learned Materials security intel 8645 | -8/Garrison | Discovered new exit (range 8) 8834 | -8/Garrison | Garrison Relay disabled 8957 | -8/Garrison | Triggered checkpoint 9039 | -8/Garrison | Triggered checkpoint 9149 | -8/Garrison | Triggered checkpoint 9208 | -8/Garrison | Garrison Relay disabled 9300 | -8/Garrison | Garrison Relay disabled 9384 | -8/Garrison | Discovered new exit (range 10) 9417 | -8/Garrison | Entered Materials 9817 | -8/Materials | First assault squad dispatched 9846 | -8/Materials | Garrison activated, responded to threat 9914 | -8/Materials | Destroyed 7 combat bots 9959 | -8/Materials | Identified exit to Garrison 9959 | -8/Materials | Entered Garrison 10012 | -8/Garrison | Build established: Executioner 10033 | -8/Garrison | Triggered checkpoint 10127 | -8/Garrison | Garrison Relay disabled 10321 | -8/Garrison | Triggered checkpoint 10349 | -8/Garrison | Core integrity fell below 50% 10374 | -8/Garrison | Lost 4 parts (4w) 10489 | -8/Garrison | Triggered checkpoint 10597 | -8/Garrison | Triggered checkpoint 10632 | -8/Garrison | Garrison Relay disabled 10702 | -8/Garrison | Build established: Scavenger-Executioner 10711 | -8/Garrison | Discovered new exit (range 13) 11087 | -8/Garrison | Triggered checkpoint 11153 | -8/Garrison | Garrison Relay disabled 11188 | -8/Garrison | Discovered new exit (range 15) 11385 | -8/Garrison | Triggered checkpoint 11407 | -8/Garrison | Garrison Relay disabled 11426 | -8/Garrison | Discovered new exit (range 59) 11426 | -8/Garrison | Discovered new exit (range 78) 11426 | -8/Garrison | Discovered new exit (range 7) 11756 | -8/Garrison | Entered Materials 11756 | -8/Materials | Accompanied by 3 allies 12423 | -8/Materials | Build established: Executioner 13450 | -8/Materials | Discovered new exit (range 12) 13573 | -8/Materials | Central database locked down 13979 | -8/Materials | Identified exit to Garrison 13979 | -8/Materials | Entered Garrison 14041 | -8/Garrison | Triggered checkpoint 14097 | -8/Garrison | Garrison Relay disabled 14176 | -8/Garrison | Triggered checkpoint 14189 | -8/Garrison | Core integrity fell below 20% 14331 | -8/Garrison | Triggered checkpoint 14374 | -8/Garrison | Garrison Relay disabled 14639 | -8/Garrison | Triggered checkpoint 14640 | -8/Garrison | Discovered new exit (range 14) 14824 | -8/Garrison | Entered Materials 15493 | -8/Materials | Discovered new exit (range 8) 16039 | -8/Materials | Discovered new exit (range 15) 16225 | -8/Materials | Entered Factory 16225 | -7/Factory | Evolved 2 slots: Utility x2 16225 | -7/Factory | Identified Bomb Drone Bay 17302 | -7/Factory | Discovered new exit (range 15) 17807 | -7/Factory | Discovered new exit (range 11) 18084 | -7/Factory | Repaired Arm. Treads+ 18145 | -7/Factory | Repaired Enh. Autogun 18434 | -7/Factory | Sucked down chute 18434 | -7/Factory | Entered Waste 18449 | -7/Waste | EMP discharged 18449 | -7/Waste | System corruption reached 10% 18465 | -7/Waste | Spotted C-40 Crusher 18505 | -7/Waste | Spotted C-40 Crusher 18505 | -7/Waste | Spotted C-40 Crusher 18509 | -7/Waste | Spotted C-40 Crusher 18517 | -7/Waste | Destroyed C-40 Crusher 18517 | -7/Waste | Destroyed C-40 Crusher 18521 | -7/Waste | Spotted C-40 Crusher 18532 | -7/Waste | Crushed by Compactor (1 part destroyed, 2 dropped) 18535 | -7/Waste | Crushed by Compactor (1 part destroyed, 2 dropped) 18538 | -7/Waste | Crushed by Compactor (1 part destroyed, 2 dropped) 18538 | -7/Waste | Released all parts (4) 18541 | -7/Waste | Crushed by Compactor (1 part destroyed) 18548 | -7/Waste | Spotted C-40 Crusher 18549 | -7/Waste | EMP discharged 18572 | -7/Waste | Lost 5 parts (3n2w) 18589 | -7/Waste | Discovered new exit (range 11) 18596 | -7/Waste | Entered Factory 19602 | -7/Factory | Identified exit to Lower Caves 19602 | -7/Factory | Watched by a mysterious "MATRIX" hacker. 19747 | -7/Factory | Build established: Hacker-Skirmisher 20078 | -7/Factory | Discovered new exit (range 8) 20185 | -7/Factory | Build established: Hacker-Gunner 20325 | -7/Factory | Core integrity fell below 50% 20544 | -7/Factory | System corruption reached 30% 20685 | -7/Factory | Build established: Scavenger-Executioner 20996 | -7/Factory | First assault squad dispatched 21261 | -7/Factory | Build established: Hacker-Executioner 21279 | -7/Factory | Core integrity fell below 20% 21335 | -7/Factory | Released all parts (7) 21336 | -7/Factory | Destroyed by G-47 Trooper with Particle Gun Last Messages --------------- 21318_ Acquired 34 matter. 21318_ K-01 Serf collects debris. 21325_ C-45 Heavy ARC bursts open, deploying its payload. 21325_ G-50 Soldier unfolds itself. 21325_ B-48 Gladiator unfolds itself. 21326_ K-01 Serf collects debris. 21328_ System corrupted: Field Laser failed to cycle. 21329_ System corrupted: Mni. Assault Cannon rejected. 21330_ Cld. Pulse Rifle destroyed. 21333_ Com. Wheel destroyed. 21334_ Critical hit (Smash). 21334_ Hvy. Laser destroyed. 21334_ System corrupted by crushing effect (+3). 21334_ Imp. Heat Sink destroyed. 21335_ Released Med. Treads. 21335_ Released Cld. Deuterium Engine. 21335_ Released Hacking Suite. 21335_ Released Hcp. Storage Unit. 21335_ Released Imp. Spread Laser. 21335_ Released Field Laser. Map ----- +----------------------------------------------------+ | ??????# """" # #?????????????????? | | ??????# """" # #?????????????????? | | ??????# """" + + ???????????????? | | ??????? # # "????????????? | | ????????? # # ""T??????????# | | ##????????? # ## #? ""??????????# | | ###########+### ####""#########?????????# | | *# ^ #/ ???????#?# | | # *+ ! """"???????????! #[%[ | | " # ^ =#= """"???????????? # | | " # # """"?????????????# | | " # =# """"?????????????# | | # ##"##+#### ## """"?????????????# | | " # ### ## ## = """"?????????????# | | " # #?# ## ## ! """" "???????????+ | | " + #?# ## ##[! ???????# | | # #?# ## ################?????????# | | # #?# ## ## ?????######## | | """ #?# ## ## ###### | | =" #?# ## ## """ """ # *= [ | | " #?# ## ## """ """ + = ! | | % #?# ## #??! """ """?# | | *"! #?# ## #???? ???# | | " #?# ## #######+###### !! ##### | | " #?# ## ]!*]/g !! %#???? | | " #?######## !!@!bggl#### ! #???? | | " #????????# [][=]*g%=#??# ! #???? | | "" #????????#############%#### #???? | | # #????????????# % =# #???? | | " + +????????????# ==# ^"" #??? | | " # #????????????# *=%/= "" #??? | | " # #????????????# ==# """ ##? | | # #????????????# # """ #? | | # #????????????# # %""" # | | ### #????????????# # # | | ??# #????????????# # "" + | | ??# #????????????# # "" # | | ??# #????????????# # """ # ! | | ??# #????????????# # """ #? | | ### ###??????????# # """ #? | | # #############+########### #?? | | #] #??# | | #??? | | "T ^ #??? | | "" #??? | | #??? | | " F" #??? | | # """" #??? | | # ####/########+###########+#####+#####??? | | ########### [ ? !?! # ## #???? | +----------------------------------------------------+ Best States ------------- Heat Dissipation 53 Energy Generation 18 Energy Capacity 310 Matter Stores 315 Matter Capacity 500 Sight Range 16 Terrain Scan Range 16 Terrain Scan Density 10 Armor Coverage 225 Evasion (%) 50 Targeting Accuracy 8 Recoil Reduction 2 Offensive Hacking 20 Item Schematics ----------------- None Robot Schematics ------------------ None Fabricated ------------ Nothing Repaired ---------- Lgt. Treads | 52% | -10/Materials Lgt. Treads | 67% | -10/Materials Assault Rifle | 59% | -10/Materials Assault Rifle | 68% | -10/Materials Hacking Suite | 80% | -10/Materials Imp. Assault Rifle | 45% | -9/Materials Imp. Assault Rifle | 72% | -9/Materials Shield Generator | 66% | -9/Materials Imp. Assault Rifle | 89% | -9/Materials Hacking Suite | 90% | -9/Materials Imp. Assault Rifle | 90% | -9/Materials Lgt. Deuterium Engine | 52% | -9/Materials Shield Generator | 70% | -8/Materials Arm. Treads | 34% | -7/Factory Enh. Autogun | 29% | -7/Factory Studied --------- Lgt. Treads | -9/Materials | Hacked Mni. Grenade Launcher | -9/Materials | Hacked Adv. Treads | -8/Materials | Hacked Arm. Treads | -8/Materials | Hacked Flak Gun | -7/Factory | Hacked Alien Tech Used ----------------- None Achievements -------------- None Challenges ------------ None Game ------ Seed OvertunedNullWarhead Manual? 0 Play Time 01:44:43 Cumulative 18.9 hours Start 2026.03.12 @ 22:09:24 End 2026.03.13 @ 01:07:10 Sessions 3 Manual Loads 0 Difficulty Rogue Special Mode None Game No. 17 Rogue 17 Adventurer 0 Explorer 0 Win Type - Total 0 Types 0/0/0/0/0/0/0/0/0/0 Lore% 21 Gallery% 30 Achievement% 57 Wizard Run 0 Options --------- Layout 0 ASCII 0 Keyboard 1 Movement Vi Keybinds 0 Fullscreen 2 Font 18/TerminusBold Map View 76x50 Zoom Use 0% Tactical HUD 1 Map Filters NONE Filters NONE Steam 1 RUN: 8c96727f-b05c-44a2-8965-a93d27eca411